[Event "*** SCC Grand Prix: Titled Tuesday Blitz"]
[Site "Chess.com"]
[Date "2020.06.02"]
[Round "10"]
[White "Aleksandar-Topalov"]
[Black "Heineccius"]
[Result "1/2-1/2"]
[WhiteElo "2463"]
[BlackElo "2608"]
[TimeControl "180+1"]
[EndTime "12:01:20 PDT"]
[Termination "Game drawn by repetition"]

1. b3 {[%clk 0:03:00.9]} 1... d5 {[%clk 0:02:57]} 2. Bb2 {[%clk 0:03:01]} 2...
e6 {[%clk 0:02:57.2]} 3. Nf3 {[%clk 0:03:00.3]} 3... Nf6 {[%clk 0:02:57]} 4. e3
{[%clk 0:03:00.3]} 4... Bd6 {[%clk 0:02:56.7]} 5. d4 {[%clk 0:03:00.5]} 5...
Nbd7 {[%clk 0:02:55.8]} 6. Nbd2 {[%clk 0:03:01.1]} 6... Qe7 {[%clk 0:02:54.4]}
7. a3 {[%clk 0:02:59.7]} 7... e5 {[%clk 0:02:53.6]} 8. dxe5 {[%clk 0:02:57.3]}
8... Nxe5 {[%clk 0:02:54.5]} 9. Be2 {[%clk 0:02:53.7]} 9... O-O {[%clk
0:02:52.4]} 10. O-O {[%clk 0:02:53.9]} 10... Bf5 {[%clk 0:02:41.7]} 11. Nd4
{[%clk 0:02:53.6]} 11... Bd7 {[%clk 0:02:37.6]} 12. Nb5 {[%clk 0:02:36.9]} 12...
Bxb5 {[%clk 0:02:35.7]} 13. Bxb5 {[%clk 0:02:37]} 13... Neg4 {[%clk 0:02:19.2]}
14. h3 {[%clk 0:02:35.9]} 14... Be5 {[%clk 0:02:13.2]} 15. Qc1 {[%clk
0:02:30.3]} 15... Bxb2 {[%clk 0:02:03.5]} 16. Qxb2 {[%clk 0:02:30]} 16... Ne5
{[%clk 0:01:58.9]} 17. Rfe1 {[%clk 0:02:23.2]} 17... Ng6 {[%clk 0:01:46.7]} 18.
Bd3 {[%clk 0:02:20]} 18... Ne5 {[%clk 0:01:42.4]} 19. Bf1 {[%clk 0:02:12.1]}
19... Ned7 {[%clk 0:01:21.1]} 20. Rad1 {[%clk 0:02:08.2]} 20... Rfe8 {[%clk
0:01:19.1]} 21. b4 {[%clk 0:02:04.3]} 21... Rad8 {[%clk 0:01:09.6]} 22. c4
{[%clk 0:01:58.2]} 22... Ne5 {[%clk 0:01:09.4]} 23. cxd5 {[%clk 0:01:49.9]}
23... Nxd5 {[%clk 0:01:09.6]} 24. Nb3 {[%clk 0:01:48.2]} 24... Ng6 {[%clk
0:01:07]} 25. Rd2 {[%clk 0:01:34.9]} 25... c6 {[%clk 0:01:06.9]} 26. Nd4 {[%clk
0:01:24.9]} 26... Qe5 {[%clk 0:01:03.7]} 27. Qc1 {[%clk 0:01:20.2]} 27... Nf6
{[%clk 0:01:03.3]} 28. Rc2 {[%clk 0:01:15.4]} 28... Ne4 {[%clk 0:01:02.6]} 29.
Bd3 {[%clk 0:01:01.2]} 29... Nh4 {[%clk 0:00:58.9]} 30. Bxe4 {[%clk 0:00:25.1]}
30... Qxe4 {[%clk 0:00:59.8]} 31. f3 {[%clk 0:00:25.2]} 31... Qg6 {[%clk
0:00:53.4]} 32. Kh1 {[%clk 0:00:21.5]} 32... Re7 {[%clk 0:00:48.3]} 33. Qd2
{[%clk 0:00:20.4]} 33... Rde8 {[%clk 0:00:47.6]} 34. e4 {[%clk 0:00:19.9]} 34...
Rd7 {[%clk 0:00:45.2]} 35. Qc3 {[%clk 0:00:15.3]} 35... Red8 {[%clk 0:00:43.2]}
36. Rd1 {[%clk 0:00:14.4]} 36... Qf6 {[%clk 0:00:33.3]} 37. Rcd2 {[%clk
0:00:13.8]} 37... h5 {[%clk 0:00:30.4]} 38. Qe3 {[%clk 0:00:13.8]} 38... Ng6
{[%clk 0:00:29.3]} 39. Ne2 {[%clk 0:00:11.9]} 39... Rxd2 {[%clk 0:00:28.4]} 40.
Rxd2 {[%clk 0:00:12]} 40... Rxd2 {[%clk 0:00:27.6]} 41. Qxd2 {[%clk 0:00:12]}
41... Qa1+ {[%clk 0:00:27.7]} 42. Qc1 {[%clk 0:00:12.4]} 42... Qe5 {[%clk
0:00:27.4]} 43. Qe3 {[%clk 0:00:10.7]} 43... b6 {[%clk 0:00:22.7]} 44. Nd4
{[%clk 0:00:08.7]} 44... c5 {[%clk 0:00:21.9]} 45. bxc5 {[%clk 0:00:08.9]} 45...
bxc5 {[%clk 0:00:22.8]} 46. Nc6 {[%clk 0:00:09]} 46... Qa1+ {[%clk 0:00:21.6]}
47. Kh2 {[%clk 0:00:08.5]} 47... Qf6 {[%clk 0:00:21.9]} 48. Qxc5 {[%clk
0:00:07.8]} 48... Nf4 {[%clk 0:00:20]} 49. Ne7+ {[%clk 0:00:06]} 49... Kh7
{[%clk 0:00:18.5]} 50. Qf5+ {[%clk 0:00:06]} 50... Qxf5 {[%clk 0:00:17.5]} 51.
Nxf5 {[%clk 0:00:06.9]} 51... g6 {[%clk 0:00:16.7]} 52. Nd6 {[%clk 0:00:07]}
52... Kg7 {[%clk 0:00:16.9]} 53. Nb5 {[%clk 0:00:07.3]} 53... a6 {[%clk
0:00:16.2]} 54. Nc7 {[%clk 0:00:07.3]} 54... a5 {[%clk 0:00:16.5]} 55. Nd5
{[%clk 0:00:07.7]} 55... Nd3 {[%clk 0:00:16.8]} 56. Kg3 {[%clk 0:00:05.2]} 56...
f6 {[%clk 0:00:17]} 57. f4 {[%clk 0:00:04.3]} 57... Kf7 {[%clk 0:00:17.2]} 58.
f5 {[%clk 0:00:04.1]} 58... g5 {[%clk 0:00:16.5]} 59. Kf3 {[%clk 0:00:03.4]}
59... Ne5+ {[%clk 0:00:15.6]} 60. Ke3 {[%clk 0:00:03.8]} 60... Nc4+ {[%clk
0:00:14.9]} 61. Kd4 {[%clk 0:00:04.4]} 61... Nxa3 {[%clk 0:00:15.2]} 62. Kc5
{[%clk 0:00:04.5]} 62... Nc2 {[%clk 0:00:13.8]} 63. Kb5 {[%clk 0:00:04.1]} 63...
Ne1 {[%clk 0:00:12.1]} 64. Ne3 {[%clk 0:00:04.4]} 64... Nd3 {[%clk 0:00:09.9]}
65. Kxa5 {[%clk 0:00:04.8]} 65... Nc5 {[%clk 0:00:09.9]} 66. Kb5 {[%clk
0:00:04.9]} 66... Nxe4 {[%clk 0:00:10.1]} 67. Kc6 {[%clk 0:00:05.5]} 67... Ke7
{[%clk 0:00:09.7]} 68. Kd5 {[%clk 0:00:05.5]} 68... Ng3 {[%clk 0:00:09.6]} 69.
Kc6 {[%clk 0:00:05.5]} 69... Kf7 {[%clk 0:00:09.4]} 70. Kd7 {[%clk 0:00:05.1]}
70... h4 {[%clk 0:00:09.1]} 71. Kd8 {[%clk 0:00:04.5]} 71... Ne2 {[%clk
0:00:09.2]} 72. Kd7 {[%clk 0:00:04.4]} 72... Nf4 {[%clk 0:00:09.4]} 73. Kd8
{[%clk 0:00:04.8]} 73... Nd3 {[%clk 0:00:09.3]} 74. Kd7 {[%clk 0:00:05.2]} 74...
Nc5+ {[%clk 0:00:09.5]} 75. Kd6 {[%clk 0:00:05.5]} 75... Ne4+ {[%clk 0:00:09.6]}
76. Kd7 {[%clk 0:00:05.8]} 76... Ng3 {[%clk 0:00:09.9]} 77. Kd8 {[%clk
0:00:06.1]} 77... Nh5 {[%clk 0:00:10.1]} 78. Kd7 {[%clk 0:00:05.6]} 78... Ng7
{[%clk 0:00:11]} 79. Kd6 {[%clk 0:00:05.3]} 79... Ne8+ {[%clk 0:00:11.1]} 80.
Kd7 {[%clk 0:00:05.6]} 80... Ng7 {[%clk 0:00:11.4]} 81. Kd8 {[%clk 0:00:05.9]}
81... Nh5 {[%clk 0:00:11.8]} 82. Kd7 {[%clk 0:00:06.4]} 82... Nf4 {[%clk
0:00:12.1]} 83. Kd6 {[%clk 0:00:06.7]} 83... g4 {[%clk 0:00:12.5]} 84. hxg4
{[%clk 0:00:06]} 84... Nxg2 {[%clk 0:00:11.5]} 85. Nf1 {[%clk 0:00:03.7]} 85...
Nf4 {[%clk 0:00:10.2]} 86. Nh2 {[%clk 0:00:03.8]} 86... Nd3 {[%clk 0:00:08.1]}
87. Kd7 {[%clk 0:00:03.4]} 87... Ne5+ {[%clk 0:00:07.9]} 88. Kd6 {[%clk
0:00:03.7]} 88... Kg7 {[%clk 0:00:08]} 89. Ke7 {[%clk 0:00:03.6]} 89... Nf7
{[%clk 0:00:07.7]} 90. Ke6 {[%clk 0:00:03.8]} 90... Ng5+ {[%clk 0:00:07.8]} 91.
Ke7 {[%clk 0:00:04.3]} 91... Nh7 {[%clk 0:00:07]} 92. Ke6 {[%clk 0:00:04.4]}
92... Kh6 {[%clk 0:00:07.2]} 93. Kf7 {[%clk 0:00:04.2]} 93... Kg5 {[%clk
0:00:07]} 94. Kg7 {[%clk 0:00:04.8]} 94... Kf4 {[%clk 0:00:02.7]} 95. Kxh7
{[%clk 0:00:05.1]} 95... Kg3 {[%clk 0:00:02.9]} 96. g5 {[%clk 0:00:05.5]} 96...
fxg5 {[%clk 0:00:02.5]} 97. f6 {[%clk 0:00:06]} 97... Kxh2 {[%clk 0:00:03.4]}
98. f7 {[%clk 0:00:06.6]} 98... g4 {[%clk 0:00:04]} 99. f8=Q {[%clk 0:00:07.2]}
99... g3 {[%clk 0:00:04.9]} 100. Qf4 {[%clk 0:00:07.6]} 100... h3 {[%clk
0:00:04.4]} 101. Kh6 {[%clk 0:00:06.9]} 101... Kg2 {[%clk 0:00:04.7]} 102. Qe4+
{[%clk 0:00:06.1]} 102... Kh2 {[%clk 0:00:04.1]} 103. Qf4 {[%clk 0:00:06.2]}
103... Kg2 {[%clk 0:00:04.1]} 104. Qe4+ {[%clk 0:00:05.8]} 104... Kf2 {[%clk
0:00:03.5]} 105. Qf4+ {[%clk 0:00:05.4]} 105... Kg2 {[%clk 0:00:03]} 1/2-1/2

[Event "*** SCC Grand Prix: Titled Tuesday Blitz"]
[Site "Chess.com"]
[Date "2020.06.02"]
[Round "10"]
[White "tsvet2005"]
[Black "Igrok3069"]
[Result "1-0"]
[WhiteElo "2578"]
[BlackElo "2733"]
[TimeControl "180+1"]
[EndTime "12:01:40 PDT"]
[Termination "tsvet2005 won by checkmate"]

1. d4 {[%clk 0:03:00.9]} 1... d5 {[%clk 0:02:59.6]} 2. c4 {[%clk 0:03:01.4]}
2... c6 {[%clk 0:03:00.2]} 3. Nc3 {[%clk 0:03:01.9]} 3... Nf6 {[%clk 0:03:00]}
4. e3 {[%clk 0:03:02.5]} 4... e5 {[%clk 0:03:00.2]} 5. dxe5 {[%clk 0:02:58.9]}
5... Ne4 {[%clk 0:02:44.2]} 6. Nxe4 {[%clk 0:02:46.5]} 6... dxe4 {[%clk
0:02:43.6]} 7. Qxd8+ {[%clk 0:02:39.5]} 7... Kxd8 {[%clk 0:02:44.5]} 8. Ne2
{[%clk 0:02:39.2]} 8... Bb4+ {[%clk 0:02:33.6]} 9. Bd2 {[%clk 0:02:34.3]} 9...
Bxd2+ {[%clk 0:02:33.2]} 10. Kxd2 {[%clk 0:02:35.2]} 10... Re8 {[%clk
0:02:32.8]} 11. f4 {[%clk 0:02:11.1]} 11... exf3 {[%clk 0:02:31.6]} 12. gxf3
{[%clk 0:02:12]} 12... Rxe5 {[%clk 0:02:31.5]} 13. Nc3 {[%clk 0:02:11.9]} 13...
Na6 {[%clk 0:02:17.6]} 14. Rd1 {[%clk 0:02:07.8]} 14... Ke7 {[%clk 0:02:16.6]}
15. Bd3 {[%clk 0:01:57.8]} 15... Be6 {[%clk 0:02:11.7]} 16. Ke2 {[%clk
0:01:42.9]} 16... Nc5 {[%clk 0:01:51]} 17. b3 {[%clk 0:01:42.6]} 17... Nxd3
{[%clk 0:01:50]} 18. Rxd3 {[%clk 0:01:43.5]} 18... Rh5 {[%clk 0:01:35.7]} 19.
Ne4 {[%clk 0:01:36.2]} 19... a5 {[%clk 0:01:16.4]} 20. Ng3 {[%clk 0:01:24.4]}
20... Rh4 {[%clk 0:01:13.3]} 21. a4 {[%clk 0:01:08.6]} 21... g5 {[%clk
0:01:08.8]} 22. Kf2 {[%clk 0:01:02.6]} 22... Rb8 {[%clk 0:01:06.8]} 23. Ne2
{[%clk 0:01:00.8]} 23... b5 {[%clk 0:00:53.5]} 24. cxb5 {[%clk 0:01:01.7]} 24...
cxb5 {[%clk 0:00:50.6]} 25. Nd4 {[%clk 0:01:02.1]} 25... bxa4 {[%clk 0:00:39.5]}
26. Nc6+ {[%clk 0:00:57.9]} 26... Kf6 {[%clk 0:00:40.1]} 27. Nxb8 {[%clk
0:00:58.1]} 27... axb3 {[%clk 0:00:40.8]} 28. Rb1 {[%clk 0:00:32.8]} 28... a4
{[%clk 0:00:37]} 29. Nd7+ {[%clk 0:00:26.4]} 29... Bxd7 {[%clk 0:00:12]} 30.
Rxd7 {[%clk 0:00:27.3]} 30... b2 {[%clk 0:00:11.9]} 31. Rd3 {[%clk 0:00:19.5]}
31... Rxh2+ {[%clk 0:00:09.3]} 32. Kg3 {[%clk 0:00:19.4]} 32... Re2 {[%clk
0:00:07.1]} 33. Ra3 {[%clk 0:00:17.5]} 33... h5 {[%clk 0:00:07.2]} 34. e4 {[%clk
0:00:13.9]} 34... h4+ {[%clk 0:00:06.1]} 35. Kh3 {[%clk 0:00:13]} 35... Rf2
{[%clk 0:00:06.3]} 36. Rxa4 {[%clk 0:00:08.1]} 36... Rxf3+ {[%clk 0:00:06.6]}
37. Kh2 {[%clk 0:00:08.3]} 37... Rf2+ {[%clk 0:00:06.4]} 38. Kh3 {[%clk
0:00:08.4]} 38... Rf3+ {[%clk 0:00:06.4]} 39. Kg2 {[%clk 0:00:08.7]} 39... Rg3+
{[%clk 0:00:06.3]} 40. Kh2 {[%clk 0:00:09]} 40... Rb3 {[%clk 0:00:06.2]} 41. Ra2
{[%clk 0:00:09.1]} 41... Re3 {[%clk 0:00:05.8]} 42. Raxb2 {[%clk 0:00:09]} 42...
Rxe4 {[%clk 0:00:06.1]} 43. Rf2+ {[%clk 0:00:09.6]} 43... Kg6 {[%clk 0:00:05.9]}
44. Rb6+ {[%clk 0:00:09.2]} 44... Kh5 {[%clk 0:00:04.8]} 45. Rxf7 {[%clk
0:00:07.8]} 45... Re2+ {[%clk 0:00:05.4]} 46. Kg1 {[%clk 0:00:08.3]} 46... Re1+
{[%clk 0:00:05.5]} 47. Rf1 {[%clk 0:00:08.2]} 47... Re3 {[%clk 0:00:05.2]} 48.
Rb5 {[%clk 0:00:08]} 48... Rg3+ {[%clk 0:00:04]} 49. Kh2 {[%clk 0:00:07.9]}
49... Rg4 {[%clk 0:00:03.6]} 50. Rf8 {[%clk 0:00:06.8]} 50... Rd4 {[%clk
0:00:02.8]} 51. Rg8 {[%clk 0:00:05.8]} 51... Rd2+ {[%clk 0:00:02.1]} 52. Kg1
{[%clk 0:00:06]} 52... Rd1+ {[%clk 0:00:02.7]} 53. Kf2 {[%clk 0:00:06.2]} 53...
Rd2+ {[%clk 0:00:03.3]} 54. Ke3 {[%clk 0:00:04.9]} 54... Rg2 {[%clk 0:00:03.4]}
55. Kf3 {[%clk 0:00:05.4]} 55... Rg3+ {[%clk 0:00:03.6]} 56. Kf2 {[%clk
0:00:05.9]} 56... Rg4 {[%clk 0:00:03.3]} 57. Rb6 {[%clk 0:00:03.9]} 57... Rg3
{[%clk 0:00:03.1]} 58. Rbg6 {[%clk 0:00:01.6]} 58... Rg4 {[%clk 0:00:02.2]} 59.
R6g7 {[%clk 0:00:01.2]} 59... Rf4+ {[%clk 0:00:02.6]} 60. Kg2 {[%clk 0:00:01.6]}
60... Rf5 {[%clk 0:00:02.6]} 61. Rh7+ {[%clk 0:00:01.4]} 61... Kg4 {[%clk
0:00:02.8]} 62. Rhg7 {[%clk 0:00:02.3]} 62... Re5 {[%clk 0:00:02.9]} 63. Rf7
{[%clk 0:00:02.1]} 63... Re2+ {[%clk 0:00:03]} 64. Rf2 {[%clk 0:00:02.6]} 64...
Re5 {[%clk 0:00:03.9]} 65. Kg1 {[%clk 0:00:02.3]} 65... Kh5 {[%clk 0:00:04.2]}
66. Rg2 {[%clk 0:00:02.3]} 66... Rd5 {[%clk 0:00:04.6]} 67. Kh2 {[%clk
0:00:02.5]} 67... Re5 {[%clk 0:00:05]} 68. Rh8+ {[%clk 0:00:02.6]} 68... Kg6
{[%clk 0:00:05.1]} 69. Ra8 {[%clk 0:00:03.5]} 69... Rd5 {[%clk 0:00:04.6]} 70.
Ra4 {[%clk 0:00:03.7]} 70... Kh5 {[%clk 0:00:04.6]} 71. Kg1 {[%clk 0:00:02.4]}
71... Rd1+ {[%clk 0:00:04.3]} 72. Kh2 {[%clk 0:00:02.4]} 72... Rd5 {[%clk
0:00:05.2]} 73. Rf2 {[%clk 0:00:02.9]} 73... Re5 {[%clk 0:00:05.1]} 74. Kg2
{[%clk 0:00:02.7]} 74... Rd5 {[%clk 0:00:05.1]} 75. Ra8 {[%clk 0:00:02.7]} 75...
Rd4 {[%clk 0:00:04.2]} 76. Rf5 {[%clk 0:00:02.7]} 76... Kg4 {[%clk 0:00:03.4]}
77. Rf2 {[%clk 0:00:03.2]} 77... Rd5 {[%clk 0:00:03]} 78. Rg8 {[%clk 0:00:03.2]}
78... Re5 {[%clk 0:00:02.4]} 79. Kh2 {[%clk 0:00:02]} 79... Rd5 {[%clk
0:00:02.8]} 80. Rg2+ {[%clk 0:00:01.3]} 80... Kh5 {[%clk 0:00:03.2]} 81. Rf2
{[%clk 0:00:01.6]} 81... Re5 {[%clk 0:00:03.6]} 82. Rgf8 {[%clk 0:00:01.9]}
82... Rd5 {[%clk 0:00:03.7]} 83. R8f5 {[%clk 0:00:02.5]} 83... Rd3 {[%clk
0:00:02.8]} 84. Rg2 {[%clk 0:00:02.7]} 84... h3 {[%clk 0:00:03.1]} 85. Rgxg5+
{[%clk 0:00:02.7]} 85... Kh4 {[%clk 0:00:02.9]} 86. Rh5+ {[%clk 0:00:03.1]}
86... Kg4 {[%clk 0:00:03.5]} 87. Rfg5+ {[%clk 0:00:04]} 87... Kf4 {[%clk
0:00:04]} 88. Rg8 {[%clk 0:00:04.9]} 88... Rd2+ {[%clk 0:00:03.9]} 89. Kxh3
{[%clk 0:00:05.4]} 89... Rd3+ {[%clk 0:00:04.5]} 90. Kh4 {[%clk 0:00:05.3]}
90... Rd1 {[%clk 0:00:04.3]} 91. Rf8+ {[%clk 0:00:05.5]} 91... Ke4 {[%clk
0:00:04.8]} 92. Kg5 {[%clk 0:00:04.6]} 92... Rg1+ {[%clk 0:00:04.4]} 93. Kf6
{[%clk 0:00:04.5]} 93... Rf1+ {[%clk 0:00:04.4]} 94. Ke7 {[%clk 0:00:04.6]}
94... Re1 {[%clk 0:00:05]} 95. Rh6 {[%clk 0:00:03.6]} 95... Kd5+ {[%clk
0:00:04.7]} 96. Kd7 {[%clk 0:00:04]} 96... Ra1 {[%clk 0:00:04.4]} 97. Rf5+
{[%clk 0:00:03.9]} 97... Ke4 {[%clk 0:00:04.7]} 98. Rb5 {[%clk 0:00:04.1]} 98...
Ra7+ {[%clk 0:00:04.6]} 99. Kc6 {[%clk 0:00:03]} 99... Ra6+ {[%clk 0:00:04.6]}
100. Rb6 {[%clk 0:00:03.5]} 100... Ra8 {[%clk 0:00:04.7]} 101. Rh4+ {[%clk
0:00:03.1]} 101... Ke5 {[%clk 0:00:05.1]} 102. Rb5+ {[%clk 0:00:03.3]} 102...
Kf6 {[%clk 0:00:05]} 103. Rh6+ {[%clk 0:00:03.5]} 103... Kg7 {[%clk 0:00:05.3]}
104. Rd6 {[%clk 0:00:03.9]} 104... Ra6+ {[%clk 0:00:05]} 105. Rb6 {[%clk
0:00:04.1]} 105... Ra8 {[%clk 0:00:04.8]} 106. Rb7+ {[%clk 0:00:04]} 106... Kg8
{[%clk 0:00:05.1]} 107. Rbd7 {[%clk 0:00:03.9]} 107... Ra6+ {[%clk 0:00:04.3]}
108. Kb7 {[%clk 0:00:03.1]} 108... Ra1 {[%clk 0:00:03.8]} 109. Rc6 {[%clk
0:00:03.3]} 109... Rb1+ {[%clk 0:00:03.8]} 110. Kc7 {[%clk 0:00:03.4]} 110...
Ra1 {[%clk 0:00:02.8]} 111. Re6 {[%clk 0:00:02.1]} 111... Rc1+ {[%clk
0:00:02.1]} 112. Kd8 {[%clk 0:00:02.5]} 112... Ra1 {[%clk 0:00:01.6]} 113. Re8#
{[%clk 0:00:02.5]} 1-0